Workbook

Sheet January 2025
A1: January 1, 2025 - January 31, 2025
A3: Income
A4: Rental Income | B4: 14346.93
A6: Expense
A7: Bank Service Charges | B7: 0
A8: Credit Card Fees | B8: 28.55
A9: Dues and Subscriptions | B9: 139.158
A10: Repairs and Maintenance | B10: 464.22
A11: Utilities | B11: 2404.08
A12: Taxes | B12: 699.27
A13: Insurance | B13: 978.83
A14: Total Expenses | B14: =SUM(B7:B13) -> 4714.108
A15: Net Income | B15: =B4-B14 -> 9632.822

Sheet February 2025
A1: February 1, 2025 - February 28, 2025
A3: Income
A4: Rental Income | B4: 17569.25
A6: Expense
A7: Bank Service Charges | B7: 0
A8: Credit Card Fees | B8: 52.98
A9: Dues and Subscriptions | B9: 130.48
A10: Repairs and Maintenance | B10: 0
A11: Utilities | B11: 3627.77
A12: Taxes | B12: 699.27
A13: Insurance | B13: 978.83
A14: Total Expenses | B14: =SUM(B7:B13) -> 5489.33
A15: Net Income | B15: =B4-B14 -> 12079.92

Sheet March 2025
A1: March 1, 2025 - March 31, 2025
A3: Income
A4: Rental Income | B4: 13895.57
A6: Expense
A7: Bank Service Charges | B7: 0
A8: Credit Card Fees | B8: 87.21
A9: Dues and Subscriptions | B9: 66.99
A10: Repairs and Maintenance | B10: 750.77
A11: Utilities | B11: 3178.83
A12: Taxes | B12: 699.27
A13: Insurance | B13: 978.83
A14: Total Expenses | B14: =SUM(B7:B13) -> 5761.9
A15: Net Income | B15: =B4-B14 -> 8133.67

Sheet April 2025
A1: April 1, 2025 - April 30, 2025
A3: Income
A4: Rental Income | B4: 20370.17
A6: Expense
A7: Bank Service Charges | B7: 0
A8: Credit Card Fees | B8: 27.73
A9: Dues and Subscriptions | B9: 66.99
A10: Repairs and Maintenance | B10: 1250
A11: Utilities | B11: 2640.35
A12: Taxes | B12: 699.27
A13: Insurance | B13: 978.83
A14: Total Expenses | B14: =SUM(B7:B13) -> 5663.17
A15: Net Income | B15: =B4-B14 -> 14707

Sheet May 2025
A1: May 1, 2025 - May 31, 2025
A3: Income
A4: Rental Income | B4: 18842.13
A6: Expense
A7: Bank Service Charges | B7: 8
A8: Credit Card Fees | B8: 61.66
A9: Dues and Subscriptions | B9: 232.82
A10: Repairs and Maintenance | B10: 711.2
A11: Utilities | B11: 1561.96
A12: Taxes | B12: 699.27
A13: Insurance | B13: 978.83
A14: Total Expenses | B14: =SUM(B7:B13) -> 4253.74
A15: Net Income | B15: =B4-B14 -> 14588.39

Sheet June 2025
A1: June 1, 2025 - June 30, 2025
A3: Income
A4: Rental Income | B4: 19918.01
A6: Expense
A7: Bank Service Charges | B7: 0.33
A8: Credit Card Fees | B8: 222.84
A9: Dues and Subscriptions | B9: 75.27
A10: Repairs and Maintenance | B10: 151.98
A11: Utilities | B11: 3023.9
A12: Taxes | B12: 699.27
A13: Insurance | B13: 978.83
A14: Total Expenses | B14: =SUM(B7:B13) -> 5152.42
A15: Net Income | B15: =B4-B14 -> 14765.59

Sheet July 2025
A1: July 1, 2025 - July 31, 2025
A3: Income
A4: Rental Income | B4: 17137.48
A6: Expense
A7: Bank Service Charges | B7: 0
A8: Credit Card Fees | B8: 161.48
A9: Dues and Subscriptions | B9: 150.27
A10: Meals | B10: 32.75
A11: Repairs and Maintenance | B11: 563.85
A12: Utilities | B12: 2916.59
A13: Taxes | B13: 699.27
A14: Insurance | B14: 978.83
A15: Total Expenses | B15: =SUM(B7:B14) -> 5503.04
A16: Net Income | B16: =B4-B15 -> 11634.44

Sheet August 2025
A1: August 1, 2025 - August 31, 2025
A3: Income
A4: Rental Income | B4: 21832.97
A6: Expense
A7: Bank Service Charges | B7: 4
A8: Credit Card Fees | B8: 221.36
A9: Dues and Subscriptions | B9: 75.27
A10: Repairs and Maintenance | B10: 144.58
A11: Utilities | B11: 2640.65
A12: Taxes | B12: 699.27
A13: Insurance | B13: 978.83
A14: Total Expenses | B14: =SUM(B7:B13) -> 4763.96
A15: Net Income | B15: =B4-B14 -> 17069.01

Sheet September 2025
A1: September 1, 2025 - September 30, 2025
A3: Income
A4: Rental Income | B4: 21394.8
A6: Expense
A7: Bank Service Charges | B7: 1.65
A8: Credit Card Fees | B8: 122.91
A9: Dues and Subscriptions | B9: 76.99
A10: Meals | B10: 65.03
A11: Repairs and Maintenance | B11: 573.56
A12: Utilities | B12: 4275.72
A13: Taxes | B13: 699.27
A14: Insurance | B14: 978.83
A15: Total Expenses | B15: =SUM(B7:B14) -> 6793.96
A16: Net Income | B16: =B4-B15 -> 14600.84

Sheet October 2025
A1: October 1, 2025 - October 31, 2025
A3: Income
A4: Rental Income | B4: 26180.62
A6: Expense
A7: Bank Service Charges | B7: 33.99
A8: Credit Card Fees | B8: 244.46
A9: Dues and Subscriptions
A10: Meals | B10: 0
A11: Repairs and Maintenance
A12: Utilities | B12: 2711.17
A13: Taxes | B13: 699.27
A14: Insurance | B14: 978.83
A15: Total Expenses | B15: =SUM(B7:B14) -> 4667.72
A16: Net Income | B16: =B4-B15 -> 21512.9

Sheet Combined P&L
A1: 2025 Combined P&L
A3: Income
A4: Rental Income | B4: =18842.13+19918.01+17137.48+21832.97+21394.8+26180.62+'January 2025'!B4+'February 2025'!B4+'March 2025'!B4+'April 2025'!B4 -> 191487.93
A6: Expense
A7: Bank Service Charges | B7: =8+0.33+4+1.65+33.99+'January 2025'!B7+'February 2025'!B7+'March 2025'!B7+'April 2025'!B7 -> 47.97
A8: Credit Card Fees | B8: =61.66+222.84+161.48+221.36+122.91+244.46+'January 2025'!B8+'February 2025'!B8+'March 2025'!B8+'April 2025'!B8 -> 1231.18
A9: Dues and Subscriptions | B9: =232.82+75.27+150.75+75.27+76.99+'January 2025'!B9+'February 2025'!B9+'March 2025'!B9+'April 2025'!B9 -> 1014.718
A10: Meals | B10: =32.75+65.03 -> 97.78
A11: Repairs and Maintenance | B11: =711.2+151.98+563.85+144.58+573.56+'January 2025'!B10+'February 2025'!B10+'March 2025'!B10+'April 2025'!B10 -> 4610.16
A12: Utilities | B12: =1561.96+3023.9+2916.59+2640.65+4275.72+2711.17+'January 2025'!B11+'February 2025'!B11+'March 2025'!B11+'April 2025'!B11 -> 28981.02
A13: Taxes | B13: ='January 2025'!B12+'February 2025'!B12+'March 2025'!B12+'April 2025'!B12+'May 2025'!B12+'June 2025'!B12+'July 2025'!B13+'August 2025'!B12+'September 2025'!B13+'October 2025'!B13 -> 6992.7
A14: Insurance | B14: 11745.96
A15: Total Expenses | B15: =SUM(B7:B14) -> 54721.488
A16: Net Income | B16: =B4-B15 -> 136766.442
